bitfinex/quotes_ETHUSD_20250724
["timestamp","ask_amount","ask_price","bid_price","bid_amount"]
[1753376915086,0.1352,3708.3,3707.9,5.23631384]
[1753376915529,0.1352,3708.3,3708.0,2.6968608]
[1753376915736,0.1352,3708.3,3707.9,5.23631384]
[1753376916235,0.4885,3708.2,3707.9,5.23631384]
[1753376916392,0.9527,3708.2,3707.9,5.23631384]
[1753376916835,0.4885,3708.1,3708.0,4.38]
[1753376917142,0.9527,3708.1,3708.0,4.38]
[1753376917293,0.5499,3708.0,3706.7,0.756]
[1753376917494,0.1352,3707.7,3707.1,0.1352]
[1753376917687,0.4885,3707.6,3707.2,4.377]
[1753376917925,0.4885,3707.5,3707.2,4.377]
[1753376918314,0.1352,3707.7,3707.2,7.07438871]
[1753376918628,2.6969208,3708.0,3707.3,2.72435464]
[1753376918794,1.0141,3708.4,3707.5,0.756]
[1753376918795,0.1352,3707.9,3707.5,0.756]
[1753376918994,2.69680154,3708.1,3707.7,0.1352]
[1753376919231,2.69680154,3708.1,3707.8,4.374]
[1753376919726,2.83194609,3708.2,3707.8,4.374]
[1753376920098,2.69680941,3708.1,3707.8,4.374]
[1753376920537,0.6237,3708.2,3707.8,4.374]
[1753376920538,3.320428,3708.2,3707.8,4.374]
[1753376920895,3.296128,3708.2,3707.8,4.374]
[1753376921112,0.4885,3708.1,3707.7,0.1352]
[1753376921448,0.1352,3708.2,3707.9,4.371]
[1753376921738,2.69672853,3708.2,3707.9,4.371]
[1753376921939,0.9527,3708.2,3707.9,4.371]
[1753376922294,0.1352,3708.3,3707.9,4.371]
[1753376922521,0.6237,3708.3,3707.9,4.371]
[1753376922727,0.4885,3708.2,3707.9,4.371]
[1753376922893,0.9527,3708.2,3707.9,4.81621832]
[1753376923090,0.4885,3708.1,3707.9,4.81621832]
[1753376923291,0.9527,3708.1,3707.9,4.81621832]
[1753376923491,0.4885,3708.1,3707.9,4.81621832]
[1753376923696,0.1352,3708.3,3707.9,4.81621832]
[1753376923927,1.0879,3708.3,3707.9,4.81621832]
[1753376924926,1.0879,3708.3,3708.0,0.59025094]
[1753376925126,0.6237,3708.3,3708.0,0.59025094]
[1753376925326,0.1352,3708.3,3708.0,0.59025094]
[1753376925531,0.9014,3708.2,3708.1,4.359]
[1753376925732,0.9014,3708.2,3708.1,4.358]
[1753376926136,0.1352,3708.3,3708.1,4.358]
[1753376926352,0.5932,3708.3,3708.1,4.358]
[1753376927421,1.0366,3708.3,3708.1,4.358]
[1753376928849,0.5786,3708.3,3708.1,4.358]
[1753376929016,1.0366,3708.3,3708.1,4.358]
[1753376929356,0.1352,3708.3,3708.1,5.06349728]
[1753376929555,3.7333218,3708.3,3708.1,5.06349728]
[1753376929750,0.9014,3708.2,3707.7,0.1352]
[1753376929938,0.9014,3708.1,3707.1,2.6975023]
[1753376930138,1.0366,3708.0,3707.4,0.1352]
[1753376930344,2.83208088,3708.0,3707.4,0.1352]
[1753376930544,0.1352,3708.0,3707.4,0.66455]
[1753376930741,2.69723533,3707.5,3707.0,0.001]
[1753376930922,6.93262636,3707.1,3707.0,0.001]
[1753376931322,7.83402636,3707.1,3707.0,0.001]
[1753376932855,7.28402636,3707.1,3707.0,0.001]
[1753376933657,7.28402636,3707.1,3707.0,4.362]
[1753376933960,0.6851,3707.1,3707.0,4.362]
[1753376934133,1.5865,3707.1,3707.0,4.362]
[1753376934336,0.1352,3707.1,3707.0,4.362]
[1753376935254,0.9014,3708.2,3707.1,0.7574]
[1753376935442,2.69658689,3708.4,3707.5,2.69718222]
[1753376935643,3.70442737,3708.5,3707.6,4.363]
[1753376935818,5.69658299,3708.4,3707.6,4.363]
[1753376936023,2.69658299,3708.4,3707.6,7.06016077]
[1753376936236,1.0079,3708.5,3707.6,7.06016077]
[1753376936434,3.0,3708.4,3707.7,2.69706766]
[1753376936638,2.69658427,3708.4,3707.7,2.697085]
[1753376936832,2.69658427,3708.4,3707.6,7.06016007]
[1753376937239,2.69658427,3708.4,3707.6,4.363]
[1753376937434,0.4434,3708.6,3707.6,5.11747044]
[1753376937658,3.4434,3708.6,3707.7,3.47628984]
[1753376937862,3.4434,3708.6,3707.8,2.69696562]
[1753376938433,2.69651029,3708.5,3707.7,3.96066548]
[1753376938667,3.15451029,3708.5,3707.7,3.96066548]
[1753376938895,3.0,3708.3,3707.8,1.1775359]
[1753376939384,0.9014,3708.2,3707.8,1.1775359]
[1753376939585,0.9014,3708.1,3707.9,4.354]
[1753376939882,3.0,3708.3,3707.9,4.354]
[1753376940162,2.69653233,3708.5,3707.9,4.354]
[1753376940363,3.0,3708.6,3707.7,0.7792]
[1753376940364,2.69684929,3708.1,3707.7,0.7792]
[1753376940529,0.458,3708.0,3707.8,4.352]
[1753376941083,0.4434,3708.1,3707.8,4.352]
[1753376941380,3.59824889,3708.1,3707.8,4.353]
[1753376941567,0.9014,3708.1,3707.8,4.353]
[1753376942067,2.69678091,3708.2,3707.8,4.353]
[1753376942466,3.59818091,3708.2,3707.8,4.353]
[1753376942703,2.69680108,3708.1,3707.8,4.353]
[1753376942849,3.15480677,3708.1,3707.8,4.353]
[1753376943054,0.4434,3708.1,3707.8,4.353]
[1753376943409,2.69694436,3707.9,3707.8,0.001]
[1753376943689,3.59829062,3708.0,3707.8,4.347]
[1753376944294,2.69687537,3708.0,3707.8,4.347]
[1753376944586,0.9014,3707.9,3707.8,4.347]
[1753376944768,3.59834436,3707.9,3707.8,4.347]
[1753376945500,0.1352,3708.0,3707.8,4.347]
[1753376946158,2.21186732,3709.4,3707.8,4.93042]
[1753376946159,0.1352,3708.3,3707.8,4.93042]
[1753376946360,1.0366,3708.3,3707.8,4.93042]
[1753376946788,3.0,3708.2,3707.8,4.93042]
[1753376946994,4.0366,3708.3,3707.8,4.93042]
[1753376947192,3.73326266,3708.3,3707.8,4.93042]
[1753376947977,3.0,3708.1,3707.8,4.93042]
[1753376948286,3.15472686,3708.2,3707.8,4.93042]
[1753376948488,3.0,3708.1,3707.8,4.93042]
[1753376948795,3.5786,3708.3,3707.8,4.93042]
[1753376948964,0.5786,3708.3,3707.8,4.93042]
[1753376949164,1.0366,3708.3,3707.9,0.76275008]
[1753376949599,1.0366,3708.3,3707.9,3.45969011]
[1753376949760,0.1352,3708.3,3708.2,2.69672617]
[1753376949962,0.1352,3708.9,3708.2,0.1352]
[1753376950270,0.458,3709.1,3708.0,0.7948]
[1753376950271,2.83171736,3708.5,3708.0,0.93]
[1753376950481,0.9014,3708.4,3708.3,4.345]
[1753376951002,0.1352,3708.5,3708.3,4.345]
[1753376951871,3.1352,3708.5,3708.3,4.345]
[1753376952297,0.1352,3708.5,3708.3,4.345]
[1753376952519,0.5932,3708.5,3708.3,4.345]
[1753376952664,0.1352,3708.5,3708.3,4.345]
[1753376954687,0.5932,3708.5,3708.4,4.345]
[1753376954865,6.7331683,3708.5,3708.4,4.345]
[1753376955461,6.7331683,3708.5,3708.0,0.93]
[1753376955462,5.69658511,3708.4,3708.0,0.93]
[1753376955695,0.9532,3708.4,3708.0,0.7948]
[1753376955895,5.69694436,3707.9,3707.8,0.001]
[1753376956057,5.69694436,3707.9,3707.8,4.345]
[1753376956411,6.65014436,3707.9,3707.8,4.345]
[1753376956598,3.0,3707.9,3707.8,4.345]
[1753376957401,3.0,3708.3,3707.9,0.821]
[1753376957587,3.0,3708.3,3708.0,4.344]
[1753376957805,0.5499,3709.1,3708.0,4.344]
[1753376957995,0.5499,3709.1,3708.0,4.37096871]
[1753376957996,0.9532,3708.8,3708.0,4.37096871]
[1753376958191,3.0,3708.6,3708.0,3.55863948]
[1753376958394,3.16905499,3709.3,3708.2,0.8105]
[1753376958589,2.69586515,3709.4,3708.4,2.69658073]
[1753376958790,3.0,3709.4,3708.7,2.69636116]
[1753376958989,5.69591043,3709.4,3708.7,0.48516362]
[1753376959305,0.002,3709.5,3708.7,0.48516362]
[1753376959609,0.002,3709.5,3708.7,3.18150077]
[1753376960019,2.69779642,3709.5,3708.7,0.48516362]
[1753376960215,3.0,3709.4,3708.7,0.48516362]
[1753376960379,3.0,3709.2,3708.7,0.48516362]
[1753376960580,2.69779642,3709.5,3708.6,0.8105]
[1753376960581,0.4731,3709.3,3708.6,0.8105]
[1753376960808,2.6963626,3708.7,3708.6,0.8105]
[1753376960992,2.6962899,3708.8,3708.7,4.344]
[1753376961197,2.69665345,3708.3,3707.8,0.7728]
[1753376961392,0.4801,3708.3,3707.9,4.344]
[1753376962111,2.69673288,3708.2,3707.9,4.344]
[1753376962316,3.17689889,3708.1,3708.0,4.344]
[1753376962484,0.9532,3708.1,3707.8,0.001]
[1753376962800,2.69694436,3707.9,3707.8,0.001]
[1753376962983,2.69694436,3707.9,3707.8,4.345]
[1753376963313,3.65014436,3707.9,3707.8,4.345]
[1753376965921,3.78534436,3707.9,3707.8,4.345]
[1753376966493,2.83214436,3707.9,3707.8,5.1599]
[1753376966787,2.83214436,3707.9,3707.8,4.345]
[1753376967523,3.0,3708.0,3707.8,4.345]
[1753376967689,3.0,3708.1,3707.8,5.3729]
[1753376967890,2.69681454,3708.1,3707.8,4.9384]
[1753376968122,3.1372,3708.3,3707.8,4.96537017]
[1753376968328,3.1372,3708.3,3707.9,0.4582]
[1753376968527,0.002,3708.3,3708.0,1.2656]
[1753376968830,0.002,3708.3,3708.2,0.1352]
[1753376969121,0.002,3708.3,3708.2,4.344]
[1753376969621,0.002,3708.3,3708.2,4.8022]
[1753376969932,0.002,3708.3,3708.2,4.82916726]
[1753376970497,0.002,3708.3,3708.2,4.8022]
[1753376970703,0.002,3708.3,3708.2,9.15058986]
[1753376970901,0.002,3708.3,3708.2,9.28578986]
[1753376973998,0.002,3708.3,3708.2,4.94178986]
[1753376974203,0.002,3708.3,3708.2,9.17655712]
[1753376974409,0.002,3708.3,3708.2,9.14958986]
[1753376975297,0.002,3708.3,3708.2,4.80658986]
[1753376975496,0.002,3708.3,3708.2,4.83355712]
[1753376975697,0.002,3708.3,3708.2,11.358]
[1753376976123,2.69865345,3708.3,3708.2,7.016]
[1753376976322,3.65185345,3708.3,3708.2,11.358]
[1753376977805,0.9552,3708.3,3708.2,11.358]
[1753376978134,3.65185345,3708.3,3708.2,11.358]
[1753376978963,0.9552,3708.3,3708.2,11.358]
[1753376979128,0.002,3708.3,3708.2,11.358]
[1753376979332,0.002,3708.3,3708.2,12.64252]
[1753376979513,0.002,3708.3,3708.2,15.33924617]
[1753376979839,0.002,3708.3,3708.2,15.79744617]
[1753376980040,0.002,3708.3,3708.2,16.57314617]
[1753376980462,0.002,3708.3,3708.2,17.25834617]
[1753376980463,1e-08,3708.3,3708.2,17.25834617]
[1753376980648,0.002,3708.9,3708.8,2.6962899]
[1753376980822,0.002,3708.9,3708.8,8.24578178]
[1753376981021,0.002,3708.9,3708.8,8.81221889]
[1753376981434,0.002,3708.9,3708.8,4.47021889]
[1753376981660,0.002,3708.9,3708.8,8.83918178]
[1753376981846,0.002,3708.9,3708.8,8.81221889]
[1753376982151,0.002,3708.9,3708.8,4.47021889]
[1753376982351,0.002,3708.9,3708.8,4.36198178]
[1753376982549,0.002,3708.9,3708.8,8.70398178]
[1753376982855,0.002,3708.9,3708.8,8.67701889]
[1753376983452,2.6982172,3708.9,3708.8,0.9109]
[1753376983660,2.6982172,3708.9,3708.8,4.4762]
[1753376984061,3.6514172,3708.9,3708.8,0.1352]
[1753376984263,2.69657469,3708.5,3708.3,0.1352]
[1753376984423,2.69650802,3708.5,3708.4,4.341]
[1753376984622,3.17660802,3708.5,3708.4,4.341]
[1753376984819,3.17660802,3708.5,3708.3,0.92782]
[1753376984820,2.69658073,3708.4,3708.3,0.79262]
[1753376985056,2.69658073,3708.4,3708.2,7.016]
[1753376985057,2.69665345,3708.3,3708.2,7.016]
[1753376985326,3.64979342,3708.4,3708.2,11.357]
[1753376985560,2.69665345,3708.3,3708.2,11.357]
[1753376986066,0.4319,3708.7,3708.2,11.357]
[1753376986220,2.69643531,3708.6,3708.2,11.357]
[1753376986627,3.18843531,3708.6,3708.2,11.357]
[1753376986827,0.492,3708.6,3708.2,7.016]
[1753376987028,2.69656237,3708.5,3708.3,4.341]
[1753376987447,0.9239,3708.4,3708.2,7.016]
[1753376987758,2.69659493,3708.4,3708.3,4.341]
[1753376988160,3.62049493,3708.4,3708.3,4.341]
[1753376988964,0.9239,3708.4,3708.3,4.341]
[1753376989256,2.69633788,3708.8,3708.3,5.56772]
[1753376989460,2.69637639,3708.7,3708.4,0.1352]
[1753376989665,0.002,3708.9,3708.5,4.341]
[1753376989864,0.492,3708.6,3708.4,0.1352]
[1753376990062,0.492,3708.6,3708.5,4.341]
[1753376990363,2.6966327,3708.4,3708.2,7.016]
[1753376990526,2.69653373,3708.5,3708.3,4.341]
[1753376990726,3.12848073,3708.4,3708.3,4.341]
[1753376990953,0.4319,3708.4,3708.3,4.341]
[1753376991153,0.492,3708.4,3708.3,4.341]
[1753376991345,3.62048073,3708.4,3708.3,4.341]
[1753376991549,2.69665345,3708.3,3707.8,0.001]
[1753376991752,2.69694436,3707.9,3707.8,0.001]
[1753376991950,2.83214436,3707.9,3707.8,4.342]
[1753376992327,3.75604436,3707.9,3707.8,4.342]
[1753376993028,3.75604436,3707.9,3707.8,0.001]
[1753376993236,3.75604436,3707.9,3707.8,4.341]
[1753376995780,0.9239,3707.9,3707.8,4.341]
[1753376996581,3.62084436,3707.9,3707.8,0.001]
[1753376996749,4.17074436,3707.9,3707.8,0.001]
[1753376996948,2.69723533,3707.5,3707.4,0.001]
[1753376997157,2.83243533,3707.5,3707.4,4.341]
[1753376997340,3.75633533,3707.5,3707.4,4.341]
[1753376998939,0.1352,3707.5,3707.4,4.341]
[1753376999149,2.69723533,3707.5,3707.4,4.341]
[1753376999353,3.18923533,3707.5,3707.4,4.341]
[1753376999553,3.62113533,3707.5,3707.4,4.341]
[1753377000238,0.1352,3707.6,3707.4,4.341]
[1753377000573,0.1352,3708.3,3707.5,3.1556143]
[1753377000749,0.1352,3708.3,3707.4,5.05902]
[1753377000750,0.1352,3708.7,3707.6,1.25547162]
[1753377000954,2.83158552,3708.7,3708.1,0.1352]
[1753377001140,2.69646628,3708.6,3708.2,4.34]
[1753377001343,2.69665345,3708.3,3708.1,0.1352]
[1753377001639,2.69697281,3707.9,3707.6,0.7701]
[1753377001840,2.69697281,3707.9,3707.7,0.1352]
[1753377001841,3.18901709,3707.8,3707.7,0.1352]
[1753377002241,3.62091709,3707.8,3707.7,4.4752]
[1753377002670,3.62091709,3707.8,3707.7,4.34]
[1753377003478,2.69701709,3707.8,3707.7,4.34]
[1753377004674,3.62091709,3707.8,3707.7,4.34]
[1753377004895,2.69723533,3707.5,3707.4,0.001]
[1753377005188,3.62101692,3707.7,3707.4,4.341]
[1753377005372,2.69723533,3707.5,3707.4,0.001]
[1753377005561,2.69723533,3707.5,3707.4,4.341]
[1753377006078,3.62113533,3707.5,3707.4,4.341]
[1753377007686,6.62113533,3707.5,3707.4,0.001]
[1753377007888,7.72103533,3707.5,3707.4,1e-08]
[1753377012663,5.69752636,3707.1,3707.0,1e-08]
[1753377012869,6.24742636,3707.1,3707.0,1e-08]
[1753377013165,7.17132636,3707.1,3707.0,1e-08]
[1753377014424,5.69781746,3706.7,3706.6,1e-08]
[1753377014767,6.62171746,3706.7,3706.6,1e-08]
[1753377015317,2.69781746,3706.7,3706.6,1e-08]
[1753377015618,3.64851746,3706.7,3706.6,1e-08]
[1753377017694,3.78371746,3706.7,3706.6,1e-08]
[1753377018286,4.33361746,3706.7,3706.6,1e-08]
[1753377019609,4.88361746,3706.7,3706.6,1e-08]
[1753377020701,3.79793582,3706.4,3706.3,1e-08]
[1753377021009,3.38313582,3706.4,3706.3,1e-08]
[1753377021212,4.33383582,3706.4,3706.3,1e-08]
[1753377021379,2.83323582,3706.4,3706.3,1e-08]
[1753377021911,3.31743582,3706.4,3706.3,1e-08]
[1753377023331,3.78393582,3706.4,3706.3,1e-08]
[1753377023679,2.83323582,3706.4,3706.3,1e-08]
[1753377023880,0.1352,3706.4,3706.3,4.81710001]
[1753377024091,2.69778416,3706.8,3706.3,5.43401001]
[1753377024284,2.69750713,3707.2,3706.5,2.69794716]
[1753377024488,2.8327544,3707.1,3706.6,0.6412789]
[1753377024718,0.1352,3707.1,3706.6,0.1621789]
[1753377024924,0.4842,3708.1,3706.8,0.8244]
[1753377025222,0.4842,3708.1,3706.4,2.69803459]
[1753377025223,2.69677857,3708.2,3707.5,0.1352]
[1753377025421,2.83201216,3708.1,3707.6,4.84407162]
[1753377025622,2.83201216,3708.1,3707.7,0.4791]
[1753377025823,0.1352,3708.1,3707.8,4.338]
[1753377026051,2.697007,3707.9,3707.8,4.338]
[1753377026321,0.6194,3708.1,3707.5,0.1352]
[1753377026524,2.83228984,3707.7,3707.6,4.338]
[1753377026711,2.78228984,3707.7,3707.6,4.338]
[1753377027033,2.69723533,3707.5,3707.2,0.9596]
[1753377027235,2.69723533,3707.5,3707.3,4.337]
[1753377027524,0.4665,3707.5,3706.8,0.7719]
[1753377027725,0.1352,3707.3,3706.8,0.7719]
[1753377028044,2.83260451,3707.3,3706.9,4.8161]
[1753377028326,2.83260451,3707.3,3707.0,0.4791]
[1753377028629,2.69745369,3707.2,3707.0,0.4791]
[1753377028803,2.69745369,3707.2,3706.9,4.337]
[1753377029123,2.69745369,3707.2,3706.9,4.8161]
[1753377029320,2.69745369,3707.2,3706.9,5.43281107]
[1753377029525,2.69745369,3707.2,3707.0,0.4791]
[1753377029729,2.69752636,3707.1,3707.0,0.4791]
[1753377029910,2.69746912,3707.2,3707.0,0.4791]
[1753377030227,2.83260517,3707.3,3707.0,0.4791]
[1753377030422,2.69746856,3707.2,3707.0,0.4791]
[1753377030720,2.69752636,3707.1,3706.9,4.95371107]
[1753377031826,2.6976719,3706.9,3706.8,0.7719]
[1753377032024,2.6976719,3706.9,3706.8,5.1079]
[1753377032231,2.69760112,3707.0,3706.8,5.1079]
[1753377032525,2.6976719,3706.9,3706.8,5.1079]
[1753377034618,2.69781746,3706.7,3706.6,0.001]
[1753377035132,3.18201746,3706.7,3706.6,4.336]
[1753377035491,2.69781746,3706.7,3706.6,4.336]
[1753377036797,3.78371746,3706.7,3706.6,4.336]
[1753377037293,4.33361746,3706.7,3706.6,0.001]
[1753377037725,3.78371746,3706.7,3706.6,0.001]
[1753377038303,2.83301746,3706.7,3706.6,0.001]
[1753377038503,2.69781746,3706.7,3706.6,0.51473]
[1753377039328,2.69781746,3706.7,3706.6,0.001]
[1753377040227,0.1352,3706.9,3706.6,0.001]
[1753377040438,2.69781746,3706.7,3706.6,0.001]
[1753377041621,3.31721746,3706.7,3706.6,0.001]
[1753377041818,3.78371746,3706.7,3706.6,0.001]
[1753377044351,3.29951746,3706.7,3706.6,0.001]
[1753377044651,2.83301746,3706.7,3706.6,0.001]
[1753377045017,2.69730422,3707.5,3706.6,0.4346]
[1753377045018,3.24725437,3707.4,3706.6,0.4346]
[1753377045358,2.69779554,3706.8,3706.6,0.001]
[1753377045942,2.83290103,3706.9,3706.6,0.001]
[1753377046126,0.1352,3706.9,3706.6,0.001]
[1753377046332,2.83289965,3706.9,3706.6,0.001]
[1753377046527,2.69775191,3706.8,3706.6,0.001]
[1753377047423,2.69745684,3707.2,3706.7,0.8047]
[1753377047620,2.83265684,3707.2,3706.8,0.50407744]
[1753377047819,2.83265684,3707.2,3706.9,4.332]
[1753377048531,2.69753133,3707.1,3706.9,4.332]
[1753377048852,2.69759913,3707.0,3706.9,4.332]
[1753377049224,0.1352,3707.2,3706.9,4.332]
[1753377049423,2.69757542,3707.1,3706.9,4.332]
[1753377049845,2.6975454,3707.1,3706.9,4.332]
[1753377050771,2.69759913,3707.0,3706.9,4.332]
[1753377051064,2.83266024,3707.2,3706.9,4.332]
[1753377051265,2.69757532,3707.1,3706.9,4.332]
[1753377051588,3.30258324,3707.2,3706.9,4.332]
[1753377051862,0.1352,3707.2,3706.9,4.332]
[1753377052067,0.1352,3707.2,3707.1,2.69752636]
[1753377052276,2.69700859,3707.9,3707.2,2.69745256]
[1753377052570,2.69687868,3708.0,3707.3,7.64062931]
[1753377052719,2.69694438,3707.9,3707.4,0.02697308]
[1753377052921,2.69694438,3707.9,3707.5,1.24386362]
[1753377053222,2.69694438,3707.9,3707.6,4.331]
[1753377053757,0.002,3708.1,3707.6,4.8081]
[1753377053955,0.002,3708.1,3707.8,0.7779]
[1753377054207,0.002,3708.1,3708.0,2.69687162]
[1753377054335,0.002,3708.1,3708.0,3.83794376]
[1753377054728,0.002,3708.1,3708.0,4.45024376]
[1753377055148,0.002,3708.1,3708.0,1.75337214]
[1753377055507,0.002,3708.1,3708.0,1.11410343]
[1753377055666,2.69879889,3708.1,3708.0,4.33]
[1753377055827,0.002,3708.1,3708.0,4.33]
[1753377056023,3.61509889,3708.1,3708.0,4.33]
[1753377056376,3.61509889,3708.1,3707.8,7.019]
[1753377056377,3.61516872,3708.1,3707.8,7.019]
[1753377056524,0.002,3708.1,3708.0,4.329]
[1753377056723,2.69879889,3708.1,3708.0,4.329]
[1753377057554,0.002,3708.1,3708.0,4.329]
[1753377057969,0.002,3708.1,3708.0,5.9409]
[1753377058554,0.002,3708.1,3708.0,5.4638]
[1753377058760,0.002,3708.1,3708.0,5.9409]
[1753377058956,0.002,3708.1,3708.0,6.7499]
[1753377060490,0.002,3708.5,3708.1,0.8041]
[1753377060692,0.002,3708.5,3708.2,4.328]
[1753377060693,2.69663445,3708.4,3708.2,4.328]
[1753377060877,2.69663445,3708.4,3708.1,2.18099]
[1753377060878,3.61293083,3708.4,3708.3,4.328]
[1753377061188,0.002,3708.5,3708.3,4.328]
[1753377061395,0.002,3708.5,3708.4,1.1549648]
[1753377061694,0.002,3708.5,3708.4,1.127999]
[1753377061899,0.002,3708.5,3708.4,0.650899]
[1753377062101,0.002,3708.5,3708.4,0.786099]
[1753377062502,0.002,3708.5,3708.4,3.48267973]
[1753377062705,0.002,3708.5,3708.4,3.98674553]
[1753377063174,0.002,3708.5,3708.4,1.2901648]
[1753377063505,0.002,3708.5,3708.4,3.48267973]
[1753377063883,0.002,3708.5,3708.4,0.786099]
[1753377065282,2.69850802,3708.5,3708.1,2.18099]
[1753377065485,0.9163,3708.4,3708.1,0.1352]
[1753377065992,3.61295345,3708.3,3708.2,4.326]
[1753377066314,3.61296118,3708.3,3708.2,4.325]
[1753377066500,2.69694436,3707.9,3707.4,0.7997]
[1753377066689,0.9163,3707.9,3707.8,11.344]
[1753377066892,3.61324436,3707.9,3707.8,11.344]
[1753377067282,0.1352,3708.1,3707.8,11.344]
[1753377067500,2.6967849,3708.2,3707.8,12.49192]
[1753377068394,3.1352,3708.3,3707.8,12.49192]
[1753377068395,0.1352,3708.3,3707.8,12.49192]
[1753377068718,0.1352,3708.3,3707.8,12.96902]
[1753377068920,0.002,3708.5,3707.9,0.02696944]
[1753377069123,2.69663933,3708.4,3708.1,0.1352]
[1753377069325,2.69663933,3708.4,3708.2,4.325]
[1753377069531,0.002,3709.5,3708.5,2.69650802]
[1753377069696,0.002,3709.5,3709.1,3.99907182]
[1753377069891,0.002,3709.5,3709.1,9.16827582]
[1753377070104,0.002,3709.5,3709.1,9.75361511]
[1753377070305,0.002,3709.5,3709.4,3.48345377]
[1753377070512,0.002,3709.5,3709.4,8.3844123]
[1753377070705,0.9163,3711.0,3710.5,0.7876]
[1753377070997,0.1344,3711.2,3710.6,4.324]
[1753377071218,0.004,3711.6,3710.8,2.82923669]
[1753377071432,0.1344,3711.5,3710.8,4.4584]
[1753377071597,2.69456842,3711.2,3710.8,4.4584]
[1753377071798,2.69461955,3711.1,3710.8,4.4584]
[1753377072131,3.74946407,3710.9,3710.8,4.324]
[1753377072336,0.004,3710.9,3710.8,4.324]
[1753377072630,0.004,3710.9,3710.8,4.9355]
[1753377072829,0.004,3710.9,3710.8,6.72365136]
[1753377073032,0.004,3710.9,3710.8,6.696703]
[1753377073516,0.004,3710.9,3710.8,6.561503]
[1753377073903,0.004,3710.9,3710.8,2.237503]
[1753377074104,0.004,3710.9,3710.8,5.716]
[1753377075446,0.004,3710.9,3710.8,5.91581615]
[1753377076164,0.006,3710.9,3710.8,5.91581615]
[1753377076658,3.64256407,3710.9,3710.8,4.322]
[1753377077863,5.69498194,3710.6,3710.5,0.1344]
[1753377078170,2.82938194,3710.6,3710.5,4.321]
[1753377078351,3.77118194,3710.6,3710.5,4.321]
[1753377078851,3.29648194,3710.6,3710.5,4.321]
[1753377079043,3.77118194,3710.6,3710.5,4.321]
[1753377079455,5.69498194,3710.6,3710.5,4.321]
[1753377080031,6.16968194,3710.6,3710.5,4.321]
[1753377080357,3.16968194,3710.6,3710.5,4.321]
[1753377081951,3.63678194,3710.6,3710.5,4.321]
[1753377082156,6.63678194,3710.6,3710.5,4.321]
[1753377082363,3.0,3710.5,3709.9,7.016]
[1753377082565,2.69537117,3710.1,3709.9,7.016]
[1753377082765,0.6015,3710.6,3710.1,0.1344]
[1753377082766,2.69526323,3710.3,3710.1,0.1344]
[1753377082979,2.69523851,3710.3,3710.2,4.32]
[1753377083187,3.16233851,3710.3,3710.2,4.32]
[1753377083480,2.69523851,3710.3,3710.2,4.32]
[1753377084133,2.69541778,3710.0,3709.9,7.016]
[1753377084339,7.18711778,3710.0,3709.9,11.335]
[1753377086239,3.0,3709.9,3709.3,0.1344]
[1753377086442,2.69585377,3709.4,3709.1,0.1352]
[1753377086683,2.69592645,3709.3,3709.2,4.319]
[1753377086905,0.9418,3709.3,3708.6,7.8433]
[1753377087199,3.5499,3710.0,3708.6,7.8433]
[1753377087200,3.0,3709.6,3708.7,7.4958241]
[1753377087480,2.69584975,3709.5,3709.2,0.1344]
[1753377087782,2.69585377,3709.4,3709.3,4.319]
[1753377087990,0.1344,3709.8,3709.4,0.8269]
[1753377088190,3.0,3710.0,3709.7,0.1344]
[1753377088399,2.69561058,3709.8,3709.7,0.1344]
[1753377088577,0.4747,3709.9,3709.7,4.4534]
[1753377088746,2.6955631,3709.8,3709.7,4.4534]
[1753377089430,2.6955277,3709.9,3709.7,4.98143]
[1753377089576,0.1344,3710.4,3709.8,0.4535]
[1753377089906,2.69496999,3710.7,3710.3,0.1344]
[1753377090068,2.69498758,3710.6,3710.5,0.1344]
[1753377090909,3.63669175,3710.8,3710.5,0.1344]
[1753377090910,0.9418,3710.8,3710.5,0.1344]
[1753377091209,2.69498194,3710.6,3710.5,0.1344]
[1753377091618,2.69498194,3710.6,3709.5,0.8269]
[1753377091619,2.69551391,3709.9,3709.5,0.8269]
[1753377091919,2.6955631,3709.8,3709.7,0.1344]
[1753377092897,3.1702631,3709.8,3709.7,0.1344]
[1753377093098,3.1702631,3709.8,3709.1,0.8152]
[1753377093099,2.69599913,3709.2,3709.1,0.8152]
[1753377093324,2.6963626,3708.7,3708.6,7.013]
[1753377093502,0.9418,3708.7,3708.6,11.4662]
[1753377093708,0.1344,3709.2,3708.6,12.69434]
[1753377093709,0.4747,3709.2,3708.6,12.69434]
[1753377093886,0.1344,3709.6,3708.7,0.48046362]
[1753377094087,0.1344,3709.6,3709.1,0.1352]
[1753377094330,0.5499,3710.1,3709.3,0.8152]
[1753377094500,0.4671,3710.2,3709.4,4.79845853]
[1753377094501,3.0,3709.9,3709.4,4.79845853]
[1753377094714,3.0,3709.9,3709.5,0.4535]
[1753377095100,3.0,3710.1,3709.5,0.4535]
[1753377095304,3.0,3709.9,3709.6,0.02695708]
[1753377095624,0.4731,3710.9,3709.8,0.8152]
[1753377095798,0.006,3710.9,3709.9,0.4804549]
[1753377096003,0.006,3710.9,3710.0,4.4522]
[1753377096201,0.006,3710.9,3710.2,2.69526299]
[1753377096389,0.006,3710.9,3710.3,4.34395199]
[1753377096589,0.006,3710.9,3710.4,2.69507594]
[1753377096789,0.006,3710.9,3709.8,0.8152]
[1753377096790,0.9478,3710.9,3709.8,0.8152]
[1753377096995,0.5499,3710.7,3709.8,0.8152]